[Event "10th Iberoamericano-ch 2024"]
[Site "Linares"]
[Date "2024.09.30"]
[Round "8.1"]
[White "Garcia Ramos, Daniel"]
[Black "Avila Pavas, Santiago"]
[Result "1-0"]
[ECO "B67"]
[WhiteElo "2415"]
[BlackElo "2485"]
[Annotator "TA"]
[PlyCount "103"]
[EventDate "2024.09.25"]
[EventType "swiss"]
[EventCountry "ESP"]
[SourceTitle "playchess.com"]
[Source "ChessBase"]
[SourceQuality "1"]
[TimeControl "5400+30"]

{[%evp 18,103,40,23,41,29,31,29,22,26,88,87,96,83,100,85,102,99,128,81,72,35,35,50,44,0,0,-20,0,-41,0,0,0,0,0,0,0,-37,12,4,18,31,48,0,33,29,34,-58,0,0,0,0,0,0,0,0,0,0,0,-56,-45,-162,-172,-129,-6,-169,-7,-1,0,-162,-151,-269,-276,-267,-265,-250,-206,-308,29988,29986,29990,29991,29991,29992,29995,29995,29996,29997]} 1. e4 {[%emt 0:01:08]} c5 {[%emt 0:02:19]} 2. Nf3 {[%emt 0:00:12]} d6 {[%emt 0:00:07]} 3. d4 {[%emt 0:00:16]} cxd4 {[%emt 0:00:09]} 4. Nxd4 {[%emt 0:00:18]} Nf6 {[%emt 0:00:07]} 5. Nc3 {[%emt 0:00:41]} Nc6 {[%emt 0:00:09]} 6. Bg5 {[%emt 0:00:49]} Bd7 {[%emt 0:00:45]} 7. Qd2 {[%emt 0:05:07]} a6 {[%emt 0:00:16]} 8. O-O-O {[%emt 0:06:13]} e6 {[%emt 0:00:26]} 9. f3 {[%emt 0:00:42]} Nxd4 {[%emt 0:00:19]} 10. Qxd4 {[%emt 0:00:06]} Be7 {[%emt 0:00:08]} 11. Kb1 {[%emt 0:05:36]} Qc7 {[%emt 0:01:36]} 12. h4 {[%emt 0:11:45]} b5 {[%emt 0:17:01] White has an edge.} 13. g4 {[%emt 0:12:01][%cal Bg2g4,Bg4g5][%mdl 32]} Qa7 {[%emt 0:27:46]} (13... h5 $11) 14. Qd2 $16 {[%emt 0:13:52] White is much more active. The black rooks are passive.} Qb7 {[%emt 0:15:51]} 15. Be3 {[%emt 0:06:59]} Rc8 {[%emt 0:12:20]} 16. g5 {[%emt 0:09:06]} Nh5 {[%emt 0:00:05]} 17. Ne2 {[%emt 0:03:00] Dodges Ng3} d5 {[%emt 0:03:31]} 18. exd5 {[%emt 0:14:07]} (18. Bh3 $142 $1 {[%cal Rh3g4]}) 18... exd5 {[%emt 0:00:06]} 19. Nd4 {[%emt 0:01:38]} O-O {[%emt 0:01:33]} 20. Bd3 {[%emt 0:00:20]} g6 {[%emt 0:04:33][%cal Oa6a5] Prevents Nf5.} 21. Rdg1 {[%emt 0:00:04]} Bc5 {[%emt 0:00:40]} 22. b4 {[%emt 0:02:30]} Bb6 {[%emt 0:00:38]} 23. Re1 {[%emt 0:00:53]} Qc7 {[%emt 0:01:27]} 24. Nb3 {[%emt 0:00:48]} Bxe3 {[%emt 0:01:24]} 25. Rxe3 {[%emt 0:00:17]} Ng3 {[%emt 0:01:17]} 26. Rhe1 {[%emt 0:00:16]} Bf5 {[%emt 0:00:40]} 27. Re5 {[%emt 0:00:49] [#]} Be4 {[%emt 0:01:28]} 28. f4 $11 {[%emt 0:01:20]} Bxd3 {[%emt 0:03:24]} 29. cxd3 {[%emt 0:00:45][%cal Ob3c5]} Qd6 {[%emt 0:00:53]} 30. Nd4 {[%emt 0:02:21]} (30. a3 $14) 30... Rfd8 {[%emt 0:03:19]} 31. Qb2 {[%emt 0:00:08]} Rf8 {[%emt 0:00:59]} 32. Re7 {[%emt 0:00:35] [#]} (32. a3 $14) 32... Ne4 $1 {[%emt 0:00:28]} 33. Re5 {[%emt 0:01:20]} Nc3+ {[%emt 0:00:04]} 34. Ka1 {[%emt 0:00:07]} Na4 {[%emt 0:00:09]} 35. Qd2 {[%emt 0:01:11]} Rc3 {[%emt 0:00:10]} 36. Rb1 {[%emt 0:00:15]} Rcc8 {[%emt 0:01:11]} 37. h5 {[%emt 0:00:16]} Rfe8 {[%emt 0:00:44]} 38. Rbe1 {[%emt 0:00:58]} (38. Rxe8+ $11 Rxe8 39. h6) 38... Rxe5 $1 $15 {[%emt 0:00:32]} 39. Rxe5 {[%emt 0:00:04]} (39. fxe5 $15 Qb6 40. Nb3 gxh5 41. d4) 39... Qb6 $40 {[%emt 0:00:23][%mdl 128] Black goes for the king.} (39... gxh5 40. Nf5 Qc7 41. Ne7+ (41. Rxd5 $2 Qc1+ 42. Qxc1 Rxc1#) 41... Kg7 42. Nxc8 Qxc8 43. Rxd5 $16) 40. Nf3 {[%emt 0:00:53]} d4 {[%emt 0:01:02]} (40... Qc7 $17 {( -> ...Qc1+)} 41. a3 gxh5) 41. Re1 {[%emt 0:00:37]} (41. hxg6 $1 $11 {and White has nothing to worry.} fxg6 42. a3) 41... Qd6 $2 {[%emt 0:00:10]} (41... gxh5 $19 {Strongly threatening ...Qc6.} 42. f5 Qc7 43. Nxd4 Qd6) 42. h6 $11 {[%emt 0:00:23]} Nc3 {[%emt 0:00:24]} 43. Re5 $2 {[%emt 0:00:26]} (43. a3 a5 44. Qf2 axb4 (44... Qxf4 45. Qxd4 Qxd4 46. Nxd4 $11) 45. Qxd4 Qxd4 46. Nxd4 bxa3 $15) (43. Qf2 $11) 43... Qxb4 {[%emt 0:00:18]} 44. Qe1 {[%emt 0:00:06] Prevents Qb1+} (44. Qc2 $17) 44... Kf8 $19 {[%emt 0:00:15]} 45. Re2 {[%emt 0:01:07][%cal Be5e2,Be2f2,Bf2c2][%mdl 32]} Qd6 {[%emt 0:00:48]} 46. Rf2 {[%emt 0:00:18]} Nd5 {[%emt 0:00:52]} (46... Qxf4 $2 {loses.} 47. Ne5 Qe3 48. Rxf7+ Ke8 49. Rf8+ (49. Qxe3 dxe3 50. Rxh7 e2 $18) 49... Ke7 50. Qxe3 (50. Rxc8 $2 {is a self mate.} Qxe1+ 51. Kb2 Qb1+ 52. Ka3 b4#) 50... dxe3 51. Rxc8 $18) 47. Ne5 {[%emt 0:00:11]} (47. Qe5 {is a better defense.} Qxe5 48. Nxe5) 47... Qa3 $4 {[%emt 0:00:33][%mdl 8192] [#]} (47... Qc7 $19 48. Kb1 Kg8) 48. Rc2 $3 {[%emt 0:00:27][%mdl 512] White mates.} Rd8 {[%emt 0:00:39] [#]} (48... Ke7 49. Nc4+) 49. Nd7+ $1 {[%emt 0:00:11][%mdl 512]} Kg8 {[%emt 0:00:03] [#]} 50. Qe5 $1 {[%emt 0:00:05][%csl Gh6,LRd4,LRd5][%cal Re5g7]} f6 {[%emt 0:00:07]} (50... Qf8 51. Nxf8) 51. Qxd5+ {[%emt 0:00:09]} Kh8 {[%emt 0:00:03]} 52. Qf7 {[%emt 0:00:05] Weighted Error Value: White=0.34/Black=0.34.  Loses game:     	White=2     	---        Missed win:     	---       	Black=2      Mistake:       	White=7     	Black=4      Inaccurate:     	White=4     	Black=2      OK:         	White=14    	Black=13     Best:        	White=2     	Black=1      Strong:       	---       	Black=1} 1-0

[Event "10th Iberoamericano-ch 2024"]
[Site "Linares"]
[Date "2024.09.30"]
[Round "8.2"]
[White "Pichot, Alan"]
[Black "Iturrizaga Bonelli, Eduardo"]
[Result "1-0"]
[ECO "B12"]
[WhiteElo "2628"]
[BlackElo "2577"]
[Annotator "TA"]
[PlyCount "79"]
[EventDate "2024.09.25"]
[EventType "swiss"]
[EventCountry "ESP"]
[SourceTitle "playchess.com"]
[Source "ChessBase"]
[SourceQuality "1"]
[TimeControl "5400+30"]

{[%evp 11,79,24,43,33,43,33,51,47,39,41,54,37,66,63,67,57,68,54,79,56,80,70,135,136,233,239,289,297,308,299,282,284,352,366,497,496,459,451,500,467,495,487,497,479,629,655,637,565,1536,1280,3214,633,29982,29975,29974,29975,29981,29982,29982,29983,29983,29984,29984,29985,29988,29989,29989,29982,29980,29981]} 1. e4 {[%emt 0:01:01]} c6 {[%emt 0:01:23]} 2. d4 {[%emt 0:00:33]} d5 {[%emt 0:00:05]} 3. e5 {[%emt 0:00:10]} Bf5 {[%emt 0:00:07]} 4. Nf3 {[%emt 0:00:18]} e6 {[%emt 0:00:14]} 5. Be2 {[%emt 0:00:13]} Nd7 {[%emt 0:00:56]} 6. O-O {[%emt 0:00:24]} h6 {[%emt 0:04:06]} 7. a4 {[%emt 0:03:14]} Ne7 {[%emt 0:01:26]} 8. c3 {[%emt 0:01:22]} Qc7 {[%emt 0:01:28]} 9. Na3 {[%emt 0:03:49][%cal Bb1a3,Ba3c2,Bc2e3][%mdl 32] White is slightly better.} a6 {[%emt 0:17:12][%cal Ba7a6,Ba6a5][%mdl 32]} 10. b4 {[%emt 0:00:43]} a5 {[%emt 0:00:04]} 11. Nc2 {[%emt 0:09:24]} Nc8 {[%emt 0:02:19]} 12. Bd2 {[%emt 0:03:35]} Be7 {[%emt 0:08:19]} 13. Nfe1 {[%emt 0:04:51]} O-O {[%emt 0:02:57]} 14. Ne3 {[%emt 0:12:33] Threatens to win with Nxf5.} Bh7 {[%emt 0:04:44]} 15. f4 {[%emt 0:04:13]} axb4 {[%emt 0:12:23]} 16. cxb4 {[%emt 0:00:21] Black is on the road to losing.} b6 {[%emt 0:00:04]} (16... Qb6 $14) 17. Bd3 $16 {[%emt 0:09:48] f5 would now be deadly.} f5 {[%emt 0:08:31] [#]} (17... c5 $16 {is a better defense.}) 18. g4 $1 $18 {[%emt 0:02:13]} Bh4 {[%emt 0:15:48]} 19. gxf5 {[%emt 0:08:13]} exf5 {[%emt 0:02:03]} 20. Qc2 {[%emt 0:01:29]} Bxe1 {[%emt 0:03:45]} 21. Bxe1 {[%emt 0:00:45]} ({Don't take} 21. Raxe1 Ne7 22. b5 Rac8 $18) 21... Ne7 {[%emt 0:00:05]} 22. Bh4 {[%emt 0:00:45]} Qd8 {[%emt 0:00:02] [#]} 23. Nxf5 $1 {[%emt 0:10:13][%mdl 512]} Bxf5 {[%emt 0:02:36]} 24. Bxf5 {[%emt 0:00:07]} Rxf5 {[%emt 0:00:25]} 25. Bxe7 {[%emt 0:00:13]} Qxe7 {[%emt 0:00:03]} 26. Qxf5 {[%emt 0:00:06]} Nf8 {[%emt 0:00:02]} 27. Qg4 {[%emt 0:01:09]} h5 {[%emt 0:02:31]} 28. Qxh5 {[%emt 0:02:12]} Qxb4 {[%emt 0:00:06]} 29. Rad1 {[%emt 0:00:45] And now f5 would win.} Rxa4 {[%emt 0:02:29]} 30. f5 {[%emt 0:02:12] Threatening mate with f6.} Qc3 {[%emt 0:00:30]} 31. e6 {[%emt 0:04:30]} (31. Kh1 $142 Nh7 32. f6 Qe3 33. f7+ Kf8 34. Rde1 (34. Qxh7 Qe4+ 35. Qxe4 dxe4 36. e6 Ra8 37. Ra1 Rxa1 38. e7+ Kxe7 39. f8=Q+ Ke6) 34... Qxe1 35. Rxe1 Ke7 36. Qxh7) 31... Rxd4 {[%emt 0:01:09]} 32. Rxd4 {[%emt 0:03:42] White mates.} Qxd4+ {[%emt 0:00:18] KQR-KQN} 33. Rf2 {[%emt 0:00:37]} Qa1+ {[%emt 0:03:07]} 34. Kg2 {[%emt 0:00:20]} Qf6 {[%emt 0:00:04]} 35. Re2 {[%emt 0:01:34]} Qe7 {[%emt 0:00:09] [#]} 36. f6 $1 {[%emt 0:01:16][%mdl 512]} gxf6 {[%emt 0:00:05]} 37. Qg4+ {[%emt 0:00:11]} Kh7 {[%emt 0:01:10]} 38. Re3 {[%emt 0:00:50][%cal Re3h3]} Ng6 {[%emt 0:00:05]} 39. Rh3+ {[%emt 0:00:05]} Kg7 {[%emt 0:00:05]} 40. Rg3 {[%emt 0:00:09] Weighted Error Value: White=0.14 (very precise) /Black=0.56.  Mistake:       	---       	Black=2      Inaccurate:     	---       	Black=4      OK:         	White=11    	Black=6      Best:        	White=1     	---        Strong:       	White=1     	---} 1-0

[Event "10th Iberoamericano-ch 2024"]
[Site "Linares"]
[Date "2024.09.30"]
[Round "8.3"]
[White "Quesada Perez, Luis Ernesto"]
[Black "Fier, Alexandr"]
[Result "1/2-1/2"]
[ECO "D85"]
[WhiteElo "2578"]
[BlackElo "2551"]
[Annotator "TA"]
[PlyCount "102"]
[EventDate "2024.09.25"]
[EventType "swiss"]
[EventCountry "ESP"]
[SourceTitle "playchess.com"]
[Source "ChessBase"]
[SourceQuality "1"]
[TimeControl "5400+30"]

{[%evp 23,102,-32,-38,-49,-43,-54,-35,-28,-27,-39,-45,-45,-26,-30,0,0,0,0,0,0,0,0,0,0,0,0,0,0,0,0,0,0,9,0,0,0,0,0,0,0,0,0,0,0,34,0,8,8,8,8,8,8,11,8,14,8,8,0,0,0,0,0,0,0,0,0,0,0,0,0,0,0,0,0,0,0,0,0,0,0,0]} 1. d4 {[%emt 0:00:04]} Nf6 {[%emt 0:00:04]} 2. c4 {[%emt 0:00:08]} g6 {[%emt 0:00:03]} 3. Nc3 {[%emt 0:02:03]} d5 {[%emt 0:00:05]} 4. cxd5 {[%emt 0:02:02]} Nxd5 {[%emt 0:00:05]} 5. e4 {[%emt 0:00:57]} Nxc3 {[%emt 0:00:05]} 6. bxc3 {[%emt 0:00:06]} Bg7 {[%emt 0:00:02]} 7. Nf3 {[%emt 0:01:18]} c5 {[%emt 0:00:20]} 8. Be3 $1 {[%emt 0:01:07][%mdl 4] 8.Be3 is setting a new trend.} Bg4 {[%emt 0:00:07]} 9. Qd2 {[%emt 0:09:16]} O-O {[%emt 0:00:45]} 10. Rb1 {[%emt 0:02:14] D85: Exchange Grünfeld: Unusual White 7th moves and lines with 7 Nf3.} Bxf3 {[%emt 0:01:00]} 11. gxf3 {[%emt 0:00:06]} e6 $146 {[%emt 0:00:03]} ({Predecessor:} 11... cxd4 12. cxd4 Nc6 13. d5 Ne5 14. Be2 Qc8 15. Bd4 Qh3 16. Qe3 Rac8 17. f4 Qg2 {0-1 Kappeler,K (2280)-Heimann,A (2576) Basel op 2018 (3)}) 12. Rd1 {[%emt 0:41:26]} Qa5 {[%emt 0:01:35]} 13. Bg2 {[%emt 0:00:51]} Nc6 {[%emt 0:06:58]} 14. f4 {[%emt 0:00:16]} Rad8 {[%emt 0:00:26]} 15. e5 $1 {[%emt 0:00:45]} f6 {[%emt 0:00:10]} 16. O-O {[%emt 0:08:34]} fxe5 {[%emt 0:04:13]} 17. fxe5 {[%emt 0:00:57]} Nxe5 {[%emt 0:02:37]} 18. Qe2 {[%emt 0:01:12]} Nc6 {[%emt 0:00:15]} 19. dxc5 {[%emt 0:00:08]} Qxc3 {[%emt 0:00:09]} 20. Rxd8 {[%emt 0:01:33]} Rxd8 {[%emt 0:03:37]} 21. Bxc6 {[%emt 0:04:13]} bxc6 {[%emt 0:00:05]} 22. Qa6 {[%emt 0:00:04]} Be5 {[%emt 0:06:53]} 23. Qxc6 {[%emt 0:01:32]} Qc4 {[%emt 0:00:03]} 24. a3 {[%emt 0:03:48]} Qd5 {[%emt 0:05:31]} 25. Qa4 {[%emt 0:05:55]} (25. Qxd5 {simplifies} exd5 26. Rb1 d4 27. Bd2) 25... Qf3 {[%emt 0:00:20]} 26. Qh4 $1 {[%emt 0:00:12]} Rd5 {[%emt 0:01:35]} 27. h3 {[%emt 0:00:12]} Rd1 {[%emt 0:07:33]} 28. Rxd1 {[%emt 0:02:07]} Qxd1+ {[%emt 0:00:04]} 29. Kg2 {[%emt 0:00:07]} Qd5+ {[%emt 0:00:03]} 30. Kg1 {[%emt 0:00:24]} Qd1+ {[%emt 0:00:04]} 31. Kg2 {[%emt 0:00:12]} Qd5+ {[%emt 0:00:03]} 32. f3 {[%emt 0:01:06]} Bc7 {[%emt 0:08:31]} 33. Qf6 {[%emt 0:01:51]} a6 {[%emt 0:03:36]} 34. a4 Qe5 {[%emt 0:03:37]} 35. Qxe5 {[%emt 0:03:23]} Bxe5 {[%emt 0:00:04]} 36. f4 {[%emt 0:04:23]} Bc7 {[%emt 0:00:14]} 37. Kf3 {[%emt 0:00:05]} Kf7 {[%emt 0:00:03]} 38. c6 Ke7 $1 {[%emt 0:03:32]} 39. Bc5+ {[%emt 0:02:41]} Kd8 {[%emt 0:03:55]} 40. Ke4 {[%emt 0:00:05]} Kc8 {[%emt 0:01:40]} 41. Bb4 Kd8 {[%emt 0:01:04]} 42. Bc3 {[%emt 0:02:47]} Bd6 {[%emt 0:00:18]} 43. Ba5+ {[%emt 0:00:07]} Kc8 {[%emt 0:00:50]} 44. Bb6 {[%emt 0:00:14]} h5 {[%emt 0:00:47]} 45. Ba5 {[%emt 0:00:39]} Kb8 {[%emt 0:00:03]} 46. Bb6 {[%emt 0:01:06]} Kc8 {[%emt 0:00:04]} 47. Ba5 {[%emt 0:00:32]} Kb8 {[%emt 0:00:04]} 48. Bd8 {[%emt 0:00:45]} Kc8 {[%emt 0:00:04]} 49. Bb6 {[%emt 0:00:09]} Kb8 $1 {[%emt 0:00:03]} 50. Ba5 {[%emt 0:00:47]} Kc8 {[%emt 0:00:04]} 51. Bb6 {[%emt 0:00:14]} Kb8 $1 {[%emt 0:00:03]} 1/2-1/2

[Event "10th Iberoamericano-ch 2024"]
[Site "Linares"]
[Date "2024.09.30"]
[Round "8.4"]
[White "Fernandez Guillen, Ernesto J."]
[Black "Gines Esteo, Pedro Antonio"]
[Result "1/2-1/2"]
[ECO "B12"]
[WhiteElo "2463"]
[BlackElo "2477"]
[Annotator "TA"]
[PlyCount "96"]
[EventDate "2024.09.25"]
[EventType "swiss"]
[EventCountry "ESP"]
[SourceTitle "playchess.com"]
[Source "ChessBase"]
[SourceQuality "1"]
[TimeControl "5400+30"]

{[%evp 17,96,0,10,10,8,0,41,9,25,28,29,24,28,32,45,31,66,42,57,63,58,59,59,43,47,44,159,20,152,71,79,74,71,70,78,78,56,56,51,59,74,66,79,60,56,24,43,0,18,14,42,0,0,0,0,0,0,0,0,0,0,0,0,0,0,0,0,0,0,0,0,0,0,0,0,0,0,0,0,0,0]} 1. e4 {[%emt 0:03:19]} c6 {[%emt 0:06:24][%cal Bc7c6,Bc6c5][%mdl 32]} 2. d4 {[%emt 0:10:29]} d5 {[%emt 0:00:06]} 3. e5 {[%emt 0:00:06]} Bf5 {[%emt 0:00:27]} 4. Be2 {[%emt 0:00:31]} c5 {[%emt 0:09:24]} 5. Nf3 {[%emt 0:02:36]} Nc6 {[%emt 0:06:08]} 6. c3 {[%emt 0:06:58]} e6 {[%emt 0:04:03]} 7. O-O {[%emt 0:01:15]} cxd4 {[%emt 0:01:46]} 8. cxd4 {[%emt 0:01:04]} Nge7 {[%emt 0:00:23]} 9. Nc3 {[%emt 0:02:07]} Nc8 {[%emt 0:04:01]} 10. Be3 {[%emt 0:01:50]} Nb6 {[%emt 0:02:19]} 11. Nd2 {[%emt 0:05:14]} h5 {[%emt 0:22:07]} 12. a3 {[%emt 0:02:25][%cal Oa1c1] White is slightly better.} (12. Bxh5 Qh4 13. g4 Bxg4 14. Qxg4 Qxh5 (14... Rxh5 15. Qxh4 Rxh4 16. Ne2 $15) 15. Qxh5 Rxh5 $15) 12... h4 {[%emt 0:04:00]} 13. h3 {[%emt 0:01:10]} Rc8 {[%emt 0:11:57]} 14. Rc1 {[%emt 0:03:00]} Be7 {[%emt 0:02:13]} 15. Na4 {[%emt 0:02:08]} Nxa4 {[%emt 0:05:07]} 16. Qxa4 {[%emt 0:03:22]} f6 {[%emt 0:01:22][%cal Bf7f6,Bf6e5,Be5d4][%mdl 32]} 17. b4 {[%emt 0:11:30][%cal Bb2b4,Bb4b5,Bb5b6,Bb6a7][%mdl 32]} fxe5 {[%emt 0:05:39]} 18. b5 {[%emt 0:06:11]} ({Much worse is} 18. dxe5 d4 19. Bf4 a6 $11) 18... Nxd4 {[%emt 0:00:06]} 19. Bxd4 {[%emt 0:00:39]} exd4 {[%emt 0:01:04]} 20. b6+ {[%emt 0:00:06]} Kf7 {[%emt 0:00:11]} 21. bxa7 {[%emt 0:10:14] [#] aiming for Rxc8.} Bf6 {[%emt 0:07:25]} ({Better is} 21... Ra8 $14) 22. Bg4 {[%emt 0:06:40]} (22. Rxc8 $16 Qxc8 23. Bg4) 22... g6 {[%emt 0:04:46]} (22... Ra8 $11) 23. Nf3 {[%emt 0:00:22]} (23. Rxc8 $142 Qxc8 24. Bxf5 gxf5 25. Rb1) 23... Ra8 $16 {[%emt 0:00:30][%cal Ob7b5]} 24. Nxd4 {[%emt 0:11:18]} Bxd4 {[%emt 0:00:13]} 25. Qxd4 {[%emt 0:00:08] [#] Strongly threatening Qe5.} b6 $1 {[%emt 0:00:08]} 26. Bxf5 {[%emt 0:00:37]} gxf5 {[%emt 0:00:01]} 27. Rfe1 {[%emt 0:00:41] The board is on fire.} Rxa7 {[%emt 0:01:10][%cal Oh8e8]} 28. Rc6 {[%emt 0:00:13][%csl LRb6,LRe6]} Re8 {[%emt 0:00:57]} 29. Rxb6 {[%emt 0:00:48] White has more active pieces.} (29. Qxb6 Qxb6 (29... Rxa3 $2 {perishes.} 30. Rc7+ Kf8 31. Rec1 $18) 30. Rxb6 Rxa3 $14) 29... Qf6 {[%emt 0:00:30] Inhibits Rbxe6.} 30. Qc5 {[%emt 0:04:16][%cal Ob6e6]} Rae7 {[%emt 0:00:28]} 31. Reb1 {[%emt 0:01:28]} Rd8 {[%emt 0:00:30]} 32. Rd6 {[%emt 0:00:45]} Red7 {[%emt 0:00:26]} 33. Rxd7+ {[%emt 0:00:40]} Rxd7 $11 {[%emt 0:00:01][%mdl 4096] Endgame. KQR-KQR} 34. Qc6 {[%emt 0:00:42]} Qe7 {[%emt 0:00:03] The position is equal.} 35. Qc3 {[%emt 0:01:27]} d4 {[%emt 0:01:20]} 36. Qf3 {[%emt 0:00:36]} d3 {[%emt 0:00:39]} 37. Qh5+ {[%emt 0:00:53]} Kg7 {[%emt 0:00:01]} 38. a4 {[%emt 0:00:33]} d2 {[%emt 0:01:01] And now ...Rc7 would win.} 39. Rd1 {[%emt 0:00:02]} Qd8 {[%emt 0:00:28]} 40. Qe2 {[%emt 0:00:19]} Kf7 {[%emt 0:00:25]} 41. Qh5+ {[%emt 0:01:34]} Kg7 {[%emt 0:00:01]} 42. Qe2 {[%emt 0:00:34]} Rd6 {[%emt 0:00:09]} 43. Kf1 {[%emt 0:00:23]} Qa5 {[%emt 0:01:26]} 44. Qc4 {[%emt 0:00:42]} Qa6 {[%emt 0:00:34]} 45. Qxa6 {[%emt 0:00:09]} Rxa6 {[%emt 0:00:01]} 46. Rxd2 {[%emt 0:00:07]} Rxa4 {[%emt 0:00:02]} 47. Ke2 {[%emt 0:00:13]} Kf6 {[%emt 0:00:07]} 48. Rb2 {[%emt 0:00:12]} Ke5 {Weighted Error Value: White=0.14 (very precise) /Black=0.14 (very precise) .  Mistake:       	White=2     	Black=2      Inaccurate:     	White=4     	Black=3      OK:         	White=15    	Black=16     Best:        	White=2     	Black=2      Strong:       	---       	Black=1} 1/2-1/2

[Event "10th Iberoamericano-ch 2024"]
[Site "Linares"]
[Date "2024.09.30"]
[Round "8.5"]
[White "Vega Gutierrez, Sabrina"]
[Black "Flores Quillas, Diego Saul Rodri"]
[Result "0-1"]
[ECO "B56"]
[WhiteElo "2374"]
[BlackElo "2451"]
[Annotator "TA"]
[PlyCount "86"]
[EventDate "2024.09.25"]
[EventType "swiss"]
[EventCountry "ESP"]
[SourceTitle "playchess.com"]
[Source "ChessBase"]
[SourceQuality "1"]
[TimeControl "5400+30"]

{[%evp 13,86,33,29,0,22,28,40,-2,6,-25,15,18,33,34,89,89,70,35,45,49,29,16,55,48,73,38,28,19,80,-21,62,58,60,37,45,0,0,0,0,0,20,20,28,0,0,0,0,0,0,0,0,0,0,0,0,0,0,-102,-99,-106,-86,-298,-295,-289,-284,-423,-447,-549,-528,-657,-603,-6147,-6136,-5069,-5040]} 1. e4 {[%emt 0:00:04]} c5 {[%emt 0:08:15]} 2. Nf3 {[%emt 0:00:04]} Nc6 {[%emt 0:00:04]} 3. d4 {[%emt 0:00:08]} cxd4 {[%emt 0:00:03]} 4. Nxd4 {[%emt 0:00:07]} Nf6 {[%emt 0:00:02]} 5. Nc3 {[%emt 0:00:14]} d6 {[%emt 0:00:03]} 6. Bb5 {[%emt 0:00:14]} Bd7 {[%emt 0:00:08]} 7. Bg5 {[%emt 0:00:13][%cal Bc1g5,Bg5h4,Bh4g3][%mdl 32]} e6 {[%emt 0:00:07]} 8. Qd3 {[%emt 0:00:26]} h6 {[%emt 0:00:06]} 9. Bh4 {[%emt 0:00:28]} g5 {[%emt 0:00:04]} 10. Bg3 {[%emt 0:10:26] White is slightly better.} Ne5 {[%emt 0:00:06]} 11. Qe3 {[%emt 0:18:54]} a6 {[%emt 0:00:24]} 12. Be2 {[%emt 0:00:38]} Qc7 {[%emt 0:06:56]} 13. h4 {[%emt 0:09:56]} Rg8 {[%emt 0:01:46]} (13... g4 $14) 14. hxg5 $16 {[%emt 0:02:35]} hxg5 {[%emt 0:00:54]} 15. Nf3 {[%emt 0:02:23]} Nfg4 {[%emt 0:05:08]} 16. Qd4 {[%emt 0:03:56]} Bg7 {[%emt 0:05:41]} 17. Nxe5 {[%emt 0:04:57]} (17. Nxg5 $2 Nf3+ 18. Nxf3 Bxd4 19. Nxd4 Ne5 $17) 17... Nxe5 {[%emt 0:16:38]} (17... Bxe5 {simplifies} 18. Bxe5 Nxe5 19. Qd2 O-O-O) 18. O-O-O {[%emt 0:00:29][%cal Od4b4]} Ke7 {[%emt 0:02:45]} 19. f4 {[%emt 0:09:35]} gxf4 {[%emt 0:04:13]} 20. Bxf4 {[%emt 0:00:26]} Bf6 {[%emt 0:00:39]} (20... Rh8 $11) 21. Rh6 {[%emt 0:03:19]} (21. Rh5 $16) 21... Rg6 {[%emt 0:03:22]} ({Black should try} 21... Bg5 $1 $11 22. Bxg5+ Rxg5) 22. Rxg6 $14 {[%emt 0:00:57]} fxg6 {[%emt 0:00:07]} 23. Qe3 {[%emt 0:02:03]} Rf8 {[%emt 0:04:30]} 24. Bg5 {[%emt 0:02:39]} Qc5 {[%emt 0:05:12]} 25. Bxf6+ $1 {[%emt 0:00:06]} Rxf6 {[%emt 0:00:04]} 26. Qd2 {[%emt 0:05:23]} b5 {[%emt 0:01:43] [#] White must now prevent ...b4.} 27. b4 $1 {[%emt 0:02:17]} Qb6 {[%emt 0:03:20]} (27... Qxb4 $2 {loses.} 28. Nd5+ exd5 29. Qxb4 $18) (27... Qc6 28. Qe3) 28. Rh1 {[%emt 0:01:11]} Be8 {[%emt 0:07:26]} 29. a3 {[%emt 0:05:37]} Qf2 {[%emt 0:04:31]} 30. Rd1 {[%emt 0:02:30]} Qf4 {[%emt 0:00:29] Active counter play!} (30... Qxg2 $2 31. Qxd6+ Kf7 32. Qxe5 $18) 31. Rf1 {[%emt 0:04:19] Prevents g5} Qxd2+ {[%emt 0:00:44]} 32. Kxd2 {[%emt 0:00:02]} Rxf1 {[%emt 0:00:12]} 33. Bxf1 $11 {[%emt 0:00:01][%mdl 4096] Endgame. KBN-KBN} Kf6 {[%emt 0:02:35]} 34. Ke3 {[%emt 0:00:26]} Kg5 {[%emt 0:05:18]} 35. a4 {[%emt 0:02:24]} bxa4 $17 {[%emt 0:00:04]} 36. Bxa6 {[%emt 0:00:08]} a3 {[%emt 0:00:18]} 37. Bf1 $2 {[%emt 0:08:09] This move loses the game for White.} (37. Bc8 $17 Bf7 38. Kd2) 37... Kg4 $19 {[%emt 0:02:22]} 38. b5 {[%emt 0:01:03]} Kg3 {[%emt 0:01:20]} 39. Na2 {[%emt 0:00:17]} (39. Ne2+ $142 Kh2 40. Nc1) 39... g5 {[%emt 0:01:53] Black is clearly winning.} 40. Nb4 {[%emt 0:00:51]} g4 {[%emt 0:01:00][%cal Oe8b5]} 41. b6 {[%emt 0:00:33] [#] Strongly threatening b7.} Bc6 {[%emt 0:00:36]} 42. Nxc6 a2 {[%emt 0:00:17]} 43. Nxe5 {[%emt 0:00:59]} a1=Q {[%emt 0:00:07] Weighted Error Value: White=0.47/Black=0.13 (very precise) .  Loses game:     	White=1     	---        Mistake:       	White=3     	Black=3      Inaccurate:     	White=7     	Black=2      OK:         	White=9     	Black=13     Best:        	White=2     	Black=3      Strong:       	White=1     	---} (43... a1=B $2 {too greedy.} 44. Nc6 $18 (44. b7 Bxe5 45. b8=Q Bf4+ 46. Ke2 Kh4 $18)) 0-1